[Event "Late-Titled-Tuesday-Blitz-March-05-2024"]
[Site "Chess.com"]
[Date "2024.03.05"]
[Round "4"]
[White "Casper"]
[Black "Supelyel"]
[Result "0-1"]
[WhiteElo "2508"]
[BlackElo "2389"]
[TimeControl "180+1"]
[EndTime "14:38:40 PST"]
[Termination "Supelyel won by resignation"]

1. e4 {[%clk 0:03:00.9]} 1... d6 {[%clk 0:02:57.6]} 2. d4 {[%clk 0:03:00.2]}
2... Nf6 {[%clk 0:02:55.5]} 3. Bd3 {[%clk 0:03:00.7]} 3... e5 {[%clk 0:02:55]}
4. Nf3 {[%clk 0:03:00.4]} 4... Nbd7 {[%clk 0:02:54.3]} 5. O-O {[%clk 0:03:00.3]}
5... Be7 {[%clk 0:02:54]} 6. c3 {[%clk 0:02:59.6]} 6... O-O {[%clk 0:02:54.1]}
7. h3 {[%clk 0:02:59.1]} 7... c6 {[%clk 0:02:54.4]} 8. Re1 {[%clk 0:02:59.3]}
8... Re8 {[%clk 0:02:52.2]} 9. a4 {[%clk 0:02:59.9]} 9... b6 {[%clk 0:02:51.7]}
10. a5 {[%clk 0:02:59.9]} 10... b5 {[%clk 0:02:52.1]} 11. Nbd2 {[%clk
0:02:58.8]} 11... a6 {[%clk 0:02:52.4]} 12. Nf1 {[%clk 0:02:57.4]} 12... Bf8
{[%clk 0:02:51.6]} 13. Ng3 {[%clk 0:02:57.8]} 13... g6 {[%clk 0:02:51.7]} 14.
Bg5 {[%clk 0:02:53.9]} 14... Bg7 {[%clk 0:02:51.6]} 15. Qd2 {[%clk 0:02:53.9]}
15... Qc7 {[%clk 0:02:48.7]} 16. Bc2 {[%clk 0:02:51.6]} 16... Nf8 {[%clk
0:02:46.9]} 17. Bb3 {[%clk 0:02:45.7]} 17... Be6 {[%clk 0:02:46.8]} 18. Qc2
{[%clk 0:02:43.1]} 18... Rac8 {[%clk 0:02:30.4]} 19. Be3 {[%clk 0:02:38.8]}
19... c5 {[%clk 0:01:47.3]} 20. dxe5 {[%clk 0:02:32.8]} 20... dxe5 {[%clk
0:01:46.8]} 21. Bxe6 {[%clk 0:02:31.5]} 21... Nxe6 {[%clk 0:01:46.5]} 22. Qe2
{[%clk 0:02:19.3]} 22... c4 {[%clk 0:01:38.6]} 23. Bb6 {[%clk 0:02:18.3]} 23...
Qb8 {[%clk 0:01:38.9]} 24. Nf1 {[%clk 0:02:16.4]} 24... Nc5 {[%clk 0:01:37]} 25.
Ne3 {[%clk 0:02:03.8]} 25... Ncxe4 {[%clk 0:01:23.4]} 26. Rad1 {[%clk
0:02:01.4]} 26... Nc5 {[%clk 0:01:21.9]} 27. Nd5 {[%clk 0:01:54.6]} 27... Nd3
{[%clk 0:01:12.4]} 28. Nxf6+ {[%clk 0:01:48.5]} 28... Bxf6 {[%clk 0:01:12]} 29.
Rf1 {[%clk 0:01:49.2]} 29... e4 {[%clk 0:01:10.1]} 30. Nd4 {[%clk 0:01:47.5]}
30... Qd6 {[%clk 0:00:55.7]} 31. f3 {[%clk 0:01:45.9]} 31... e3 {[%clk
0:00:51.1]} 32. Nc2 {[%clk 0:01:40.8]} 32... Bd8 {[%clk 0:00:34.3]} 33. Bxe3
{[%clk 0:01:32.6]} 33... Bc7 {[%clk 0:00:33.1]} 34. f4 {[%clk 0:01:30.2]} 34...
Nxf4 {[%clk 0:00:26.9]} 35. Bxf4 {[%clk 0:01:26]} 35... Rxe2 {[%clk 0:00:24.6]}
36. Bxd6 {[%clk 0:01:26.5]} 36... Bxd6 {[%clk 0:00:21.6]} 37. Rxd6 {[%clk
0:01:27.4]} 37... Rxc2 {[%clk 0:00:20.7]} 38. Rf2 {[%clk 0:01:25.7]} 38... Rxf2
{[%clk 0:00:16.6]} 39. Kxf2 {[%clk 0:01:26.6]} 39... Rb8 {[%clk 0:00:16.1]} 40.
Rxa6 {[%clk 0:01:26.1]} 40... b4 {[%clk 0:00:16.7]} 41. Rc6 {[%clk 0:01:25.9]}
41... bxc3 {[%clk 0:00:16.8]} 42. bxc3 {[%clk 0:01:26.8]} 42... Rb5 {[%clk
0:00:17]} 43. a6 {[%clk 0:01:27.1]} 43... Rb2+ {[%clk 0:00:16.1]} 44. Kf3 {[%clk
0:01:26.4]} 44... Ra2 {[%clk 0:00:16.5]} 45. g4 {[%clk 0:01:23.8]} 45... Kg7
{[%clk 0:00:16.8]} 46. g5 {[%clk 0:01:23.6]} 46... h6 {[%clk 0:00:17.5]} 47. h4
{[%clk 0:01:24.2]} 47... hxg5 {[%clk 0:00:17.8]} 48. hxg5 {[%clk 0:01:25.1]}
48... Ra5 {[%clk 0:00:18.2]} 49. Kf4 {[%clk 0:01:23.9]} 49... Ra4 {[%clk
0:00:18.5]} 50. Ke5 {[%clk 0:01:23]} 50... Ra5+ {[%clk 0:00:19.1]} 51. Kf4
{[%clk 0:01:23.6]} 51... Ra4 {[%clk 0:00:19.5]} 52. Ke4 {[%clk 0:01:24.2]} 52...
Ra5 {[%clk 0:00:19.7]} 53. Kd4 {[%clk 0:01:17.7]} 53... Rxg5 {[%clk 0:00:20]}
54. Rc5 {[%clk 0:01:12]} 54... Rg4+ {[%clk 0:00:20]} 55. Kd5 {[%clk 0:01:12.5]}
55... Rg1 {[%clk 0:00:20.4]} 56. Ra5 {[%clk 0:01:12.4]} 56... Rg5+ {[%clk
0:00:20.5]} 0-1

[Event "Late-Titled-Tuesday-Blitz-March-05-2024"]
[Site "Chess.com"]
[Date "2024.03.05"]
[Round "4"]
[White "semchik73"]
[Black "dennisodessa"]
[Result "1-0"]
[WhiteElo "2427"]
[BlackElo "2554"]
[TimeControl "180+1"]
[EndTime "14:38:43 PST"]
[Termination "semchik73 won by resignation"]

1. Nf3 {[%clk 0:03:00.4]} 1... Nf6 {[%clk 0:02:59.9]} 2. c4 {[%clk 0:03:00.6]}
2... e6 {[%clk 0:02:58.6]} 3. d4 {[%clk 0:03:00.9]} 3... Bb4+ {[%clk 0:02:58.8]}
4. Bd2 {[%clk 0:03:00.9]} 4... a5 {[%clk 0:02:59.4]} 5. a3 {[%clk 0:03:00.5]}
5... Bxd2+ {[%clk 0:02:58.9]} 6. Qxd2 {[%clk 0:03:01]} 6... b6 {[%clk
0:02:59.4]} 7. Nc3 {[%clk 0:03:00.3]} 7... Bb7 {[%clk 0:03:00.1]} 8. g3 {[%clk
0:03:00]} 8... O-O {[%clk 0:02:59]} 9. Bg2 {[%clk 0:03:00.3]} 9... Ne4 {[%clk
0:02:59.7]} 10. Nxe4 {[%clk 0:02:56.4]} 10... Bxe4 {[%clk 0:03:00.6]} 11. O-O
{[%clk 0:02:56.8]} 11... d6 {[%clk 0:03:00.7]} 12. Qf4 {[%clk 0:02:52.6]} 12...
f5 {[%clk 0:02:56.6]} 13. Ng5 {[%clk 0:02:43.2]} 13... Bxg2 {[%clk 0:02:57.5]}
14. Kxg2 {[%clk 0:02:37.4]} 14... Qf6 {[%clk 0:02:49.7]} 15. d5 {[%clk 0:02:31]}
15... exd5 {[%clk 0:02:24.4]} 16. cxd5 {[%clk 0:02:30.2]} 16... Qxb2 {[%clk
0:02:25.1]} 17. Ne6 {[%clk 0:02:26.2]} 17... Rf7 {[%clk 0:02:25.5]} 18. Rac1
{[%clk 0:02:19.2]} 18... Na6 {[%clk 0:02:24.6]} 19. Ng5 {[%clk 0:02:09.7]} 19...
Rf6 {[%clk 0:02:12.3]} 20. Ne6 {[%clk 0:02:08.5]} 20... Qxe2 {[%clk 0:02:00.6]}
21. Rfe1 {[%clk 0:01:55.9]} 21... Qd3 {[%clk 0:01:58]} 22. Nxc7 {[%clk
0:01:35.4]} 22... Nxc7 {[%clk 0:01:58.9]} 23. Rxc7 {[%clk 0:01:35.7]} 23...
Qxd5+ {[%clk 0:01:58.8]} 24. Kg1 {[%clk 0:01:36.3]} 24... Raf8 {[%clk 0:01:38]}
25. Ree7 {[%clk 0:01:33.6]} 25... R6f7 {[%clk 0:01:36.8]} 26. Qg5 {[%clk
0:01:28.7]} 26... Qd1+ {[%clk 0:01:15.8]} 27. Kg2 {[%clk 0:01:28.4]} 27... Rxe7
{[%clk 0:01:14.8]} 28. Qxe7 {[%clk 0:01:11.5]} 28... Qd4 {[%clk 0:01:15.7]} 29.
Qe6+ {[%clk 0:00:52]} 29... Kh8 {[%clk 0:01:14.2]} 30. Rc8 {[%clk 0:00:49.1]}
30... Qf6 {[%clk 0:00:15.5]} 31. Qxf6 {[%clk 0:00:47.7]} 31... Rxc8 {[%clk
0:00:15.3]} 32. Qxf5 {[%clk 0:00:45.2]} 32... Rg8 {[%clk 0:00:15.4]} 33. Qd7
{[%clk 0:00:43.5]} 33... h6 {[%clk 0:00:15.9]} 34. Qxd6 {[%clk 0:00:43.6]} 34...
a4 {[%clk 0:00:15.3]} 35. Qxb6 {[%clk 0:00:43.4]} 35... Ra8 {[%clk 0:00:16.2]}
36. Qc6 {[%clk 0:00:43]} 36... Ra7 {[%clk 0:00:16.5]} 37. Qc5 {[%clk 0:00:38.9]}
37... Kh7 {[%clk 0:00:16.7]} 38. Qxa7 {[%clk 0:00:38.9]} 1-0

[Event "Late-Titled-Tuesday-Blitz-March-05-2024"]
[Site "Chess.com"]
[Date "2024.03.05"]
[Round "4"]
[White "stollenmonster"]
[Black "dosto07"]
[Result "1-0"]
[WhiteElo "2871"]
[BlackElo "2518"]
[TimeControl "180+1"]
[EndTime "14:38:47 PST"]
[Termination "stollenmonster won by resignation"]

1. e4 {[%clk 0:03:00.9]} 1... e5 {[%clk 0:02:41.9]} 2. Nc3 {[%clk 0:03:00.4]}
2... Nf6 {[%clk 0:02:41.6]} 3. g3 {[%clk 0:03:00.7]} 3... d5 {[%clk 0:02:41.8]}
4. exd5 {[%clk 0:03:01.6]} 4... Nxd5 {[%clk 0:02:41.4]} 5. Bg2 {[%clk
0:03:02.2]} 5... Nxc3 {[%clk 0:02:41.7]} 6. bxc3 {[%clk 0:03:03.1]} 6... Nc6
{[%clk 0:02:42.2]} 7. d3 {[%clk 0:03:03.4]} 7... Bc5 {[%clk 0:02:42.8]} 8. Rb1
{[%clk 0:03:02.8]} 8... O-O {[%clk 0:02:42.2]} 9. Ne2 {[%clk 0:03:02.5]} 9...
Bg4 {[%clk 0:02:41.8]} 10. h3 {[%clk 0:03:02.3]} 10... Bh5 {[%clk 0:02:42.4]}
11. g4 {[%clk 0:03:02.9]} 11... Bg6 {[%clk 0:02:42.4]} 12. Ng3 {[%clk 0:03:03]}
12... Bb6 {[%clk 0:02:42.1]} 13. O-O {[%clk 0:03:00.8]} 13... Rb8 {[%clk
0:02:37.5]} 14. Kh2 {[%clk 0:02:59.6]} 14... Ne7 {[%clk 0:02:34.1]} 15. f4
{[%clk 0:02:58.2]} 15... exf4 {[%clk 0:02:33.2]} 16. Bxf4 {[%clk 0:02:58.7]}
16... f5 {[%clk 0:02:32.9]} 17. c4 {[%clk 0:02:45.2]} 17... Qd7 {[%clk
0:02:29.1]} 18. g5 {[%clk 0:02:38.7]} 18... Nc6 {[%clk 0:02:14.7]} 19. h4 {[%clk
0:02:36.2]} 19... Rbe8 {[%clk 0:02:06.5]} 20. Rb5 {[%clk 0:02:24.3]} 20... Bf7
{[%clk 0:01:52.5]} 21. Rxf5 {[%clk 0:02:12]} 21... Nd4 {[%clk 0:01:49.8]} 22.
Re5 {[%clk 0:02:03.1]} 22... c6 {[%clk 0:01:46.3]} 23. Ne4 {[%clk 0:01:47.9]}
23... Bc7 {[%clk 0:01:36.9]} 24. Rxe8 {[%clk 0:01:47.7]} 24... Rxe8 {[%clk
0:01:35.9]} 25. Kg1 {[%clk 0:01:39.5]} 25... Bxf4 {[%clk 0:01:31.8]} 26. Rxf4
{[%clk 0:01:40.4]} 26... Qe7 {[%clk 0:01:30.3]} 27. Rf2 {[%clk 0:01:28]} 27...
Qe5 {[%clk 0:01:26.2]} 28. Qg4 {[%clk 0:01:23.1]} 28... Be6 {[%clk 0:01:22.8]}
29. Qh5 {[%clk 0:01:13.9]} 29... Re7 {[%clk 0:01:15.7]} 30. c3 {[%clk
0:01:02.8]} 30... Nf5 {[%clk 0:01:15.7]} 31. d4 {[%clk 0:01:02.7]} 31... Qb8
{[%clk 0:01:09.5]} 32. g6 {[%clk 0:01:02.6]} 32... h6 {[%clk 0:01:01.7]} 33.
Rxf5 {[%clk 0:00:59]} 33... Bxf5 {[%clk 0:01:00.6]} 34. Qxf5 {[%clk 0:00:59.9]}
34... Kh8 {[%clk 0:00:51.7]} 35. c5 {[%clk 0:00:57.8]} 35... Qd8 {[%clk
0:00:50.2]} 36. Qf4 {[%clk 0:00:50.3]} 36... Qg8 {[%clk 0:00:27.7]} 37. a4
{[%clk 0:00:47.7]} 37... Re8 {[%clk 0:00:20.9]} 38. Nd6 {[%clk 0:00:47.2]} 38...
Re1+ {[%clk 0:00:17.5]} 39. Kf2 {[%clk 0:00:46.8]} 39... Qe6 {[%clk 0:00:12]}
40. Qf8+ {[%clk 0:00:46]} 1-0

[Event "Late-Titled-Tuesday-Blitz-March-05-2024"]
[Site "Chess.com"]
[Date "2024.03.05"]
[Round "4"]
[White "rickywsb"]
[Black "GlavkonVVS"]
[Result "0-1"]
[WhiteElo "2353"]
[BlackElo "2549"]
[TimeControl "180+1"]
[EndTime "14:38:48 PST"]
[Termination "GlavkonVVS won by resignation"]

1. d4 {[%clk 0:03:00.9]} 1... Nf6 {[%clk 0:02:59.9]} 2. Bf4 {[%clk 0:03:01]}
2... g6 {[%clk 0:02:58.2]} 3. Nc3 {[%clk 0:03:00.6]} 3... d5 {[%clk 0:02:57]} 4.
e3 {[%clk 0:02:56.8]} 4... Bg7 {[%clk 0:02:54.7]} 5. Nb5 {[%clk 0:02:51.3]} 5...
Na6 {[%clk 0:02:54.1]} 6. Nc3 {[%clk 0:02:51.6]} 6... Nh5 {[%clk 0:02:37.2]} 7.
Bxa6 {[%clk 0:02:45.3]} 7... bxa6 {[%clk 0:02:37.2]} 8. Be5 {[%clk 0:02:41.8]}
8... Rb8 {[%clk 0:02:27]} 9. Bxg7 {[%clk 0:02:06.2]} 9... Nxg7 {[%clk
0:02:26.4]} 10. Na4 {[%clk 0:02:03.7]} 10... Bd7 {[%clk 0:02:20.7]} 11. c3
{[%clk 0:02:00.2]} 11... O-O {[%clk 0:02:18.1]} 12. Rb1 {[%clk 0:01:57.6]} 12...
Ne6 {[%clk 0:02:09.1]} 13. Nf3 {[%clk 0:01:56.1]} 13... Bb5 {[%clk 0:02:08.9]}
14. Ne5 {[%clk 0:01:49.2]} 14... Qd6 {[%clk 0:02:03.9]} 15. h4 {[%clk
0:01:42.5]} 15... f6 {[%clk 0:01:55.4]} 16. Nd3 {[%clk 0:01:41.3]} 16... a5
{[%clk 0:01:22.2]} 17. Nac5 {[%clk 0:01:37.1]} 17... Bxd3 {[%clk 0:01:18.6]} 18.
Nxd3 {[%clk 0:01:35.1]} 18... c5 {[%clk 0:01:17]} 19. h5 {[%clk 0:01:33.4]}
19... g5 {[%clk 0:01:16.5]} 20. h6 {[%clk 0:01:22.2]} 20... cxd4 {[%clk
0:01:15.3]} 21. cxd4 {[%clk 0:01:21.9]} 21... Rfc8 {[%clk 0:01:10.8]} 22. Qa4
{[%clk 0:01:12.1]} 22... Qa6 {[%clk 0:00:54.5]} 23. Rd1 {[%clk 0:01:10.7]} 23...
Qb5 {[%clk 0:00:52.6]} 24. Qa3 {[%clk 0:01:09.4]} 24... Kf7 {[%clk 0:00:50.4]}
25. O-O {[%clk 0:01:04.2]} 25... Rc2 {[%clk 0:00:49.8]} 26. f4 {[%clk
0:00:56.2]} 26... g4 {[%clk 0:00:44.7]} 27. b3 {[%clk 0:00:44.1]} 27... Rbc8
{[%clk 0:00:42]} 28. f5 {[%clk 0:00:12.6]} 28... Ng5 {[%clk 0:00:41]} 29. Rf4
{[%clk 0:00:12.2]} 29... g3 {[%clk 0:00:36.7]} 30. Rg4 {[%clk 0:00:11.8]} 30...
Qxd3 {[%clk 0:00:33.9]} 31. Rf1 {[%clk 0:00:04.2]} 31... Qxe3+ {[%clk
0:00:30.1]} 32. Kh1 {[%clk 0:00:04.1]} 32... Qe2 {[%clk 0:00:30.2]} 0-1

[Event "Late-Titled-Tuesday-Blitz-March-05-2024"]
[Site "Chess.com"]
[Date "2024.03.05"]
[Round "4"]
[White "Lennis93"]
[Black "Irishchessman16"]
[Result "1-0"]
[WhiteElo "2703"]
[BlackElo "2531"]
[TimeControl "180+1"]
[EndTime "14:38:53 PST"]
[Termination "Lennis93 won by resignation"]

1. a3 {[%clk 0:03:00.9]} 1... d5 {[%clk 0:02:56]} 2. Nf3 {[%clk 0:03:00.5]} 2...
Nf6 {[%clk 0:02:53.7]} 3. c4 {[%clk 0:02:57.9]} 3... d4 {[%clk 0:02:51.7]} 4. e3
{[%clk 0:02:50.4]} 4... Nc6 {[%clk 0:02:48.1]} 5. b4 {[%clk 0:02:49.7]} 5...
dxe3 {[%clk 0:02:19.2]} 6. fxe3 {[%clk 0:02:42.5]} 6... Bg4 {[%clk 0:02:19.5]}
7. Be2 {[%clk 0:02:37.8]} 7... Bxf3 {[%clk 0:02:05.4]} 8. Bxf3 {[%clk
0:02:37.5]} 8... Ne5 {[%clk 0:02:05.5]} 9. Bxb7 {[%clk 0:02:33.7]} 9... Rb8
{[%clk 0:02:05.6]} 10. Qa4+ {[%clk 0:02:29.1]} 10... Qd7 {[%clk 0:02:05.6]} 11.
Qxd7+ {[%clk 0:02:24.5]} 11... Kxd7 {[%clk 0:02:06.5]} 12. Bf3 {[%clk
0:02:08.6]} 12... Nxc4 {[%clk 0:02:07.1]} 13. d4 {[%clk 0:02:06.2]} 13... e5
{[%clk 0:02:06.4]} 14. Be2 {[%clk 0:02:00.5]} 14... Nb6 {[%clk 0:02:04.1]} 15.
dxe5 {[%clk 0:01:59.7]} 15... Nfd5 {[%clk 0:02:03.7]} 16. O-O {[%clk 0:01:56.8]}
16... f6 {[%clk 0:02:03.1]} 17. exf6 {[%clk 0:01:46.7]} 17... Nxf6 {[%clk
0:02:02.9]} 18. Bb2 {[%clk 0:01:40.5]} 18... Bd6 {[%clk 0:02:02.8]} 19. Rc1
{[%clk 0:01:29.7]} 19... Rbe8 {[%clk 0:01:57.5]} 20. Bb5+ {[%clk 0:01:29.6]}
20... Kd8 {[%clk 0:01:52.9]} 21. Bxf6+ {[%clk 0:01:29.6]} 21... gxf6 {[%clk
0:01:52]} 22. Bxe8 {[%clk 0:01:29.7]} 22... Rxe8 {[%clk 0:01:52.7]} 23. Nc3
{[%clk 0:01:28.3]} 23... Rxe3 {[%clk 0:01:51.1]} 24. Nb5 {[%clk 0:01:28.4]}
24... Be5 {[%clk 0:01:48.7]} 25. Ra2 {[%clk 0:01:24.5]} 25... a6 {[%clk
0:01:46.3]} 26. Rd2+ {[%clk 0:01:23.8]} 26... Kc8 {[%clk 0:01:46.2]} 27. Na7+
{[%clk 0:01:13.7]} 27... Kb7 {[%clk 0:01:43.5]} 28. Nc6 {[%clk 0:01:14.3]} 28...
Bd6 {[%clk 0:01:33.9]} 29. Na5+ {[%clk 0:01:11.8]} 29... Kb8 {[%clk 0:01:34]}
30. a4 {[%clk 0:00:51.8]} 30... Nxa4 {[%clk 0:01:26.8]} 31. Nc4 {[%clk
0:00:50.9]} 31... Bf4 {[%clk 0:01:22.9]} 32. Rd4 {[%clk 0:00:20.5]} 32... Bg5
{[%clk 0:01:00.4]} 33. h4 {[%clk 0:00:20.7]} 33... Bh6 {[%clk 0:01:00.4]} 34.
Rf1 {[%clk 0:00:20.7]} 34... Re6 {[%clk 0:00:56.4]} 35. Rd8+ {[%clk 0:00:19.7]}
35... Ka7 {[%clk 0:00:55.5]} 36. Rd7 {[%clk 0:00:18.2]} 36... Rc6 {[%clk
0:00:45]} 37. Rxh7 {[%clk 0:00:18.2]} 37... Bf8 {[%clk 0:00:43.9]} 38. Na5
{[%clk 0:00:16.2]} 38... Rc2 {[%clk 0:00:43.1]} 39. Rxf6 {[%clk 0:00:16.2]}
39... Nb6 {[%clk 0:00:29.4]} 40. Rxf8 {[%clk 0:00:15.8]} 1-0

[Event "Late-Titled-Tuesday-Blitz-March-05-2024"]
[Site "Chess.com"]
[Date "2024.03.05"]
[Round "4"]
[White "corvachesky"]
[Black "Sajkochess"]
[Result "1-0"]
[WhiteElo "2516"]
[BlackElo "2335"]
[TimeControl "180+1"]
[EndTime "14:38:53 PST"]
[Termination "corvachesky won by checkmate"]

1. Nf3 {[%clk 0:02:57.1]} 1... Nf6 {[%clk 0:03:00]} 2. b3 {[%clk 0:02:56.1]}
2... e6 {[%clk 0:02:54.8]} 3. Bb2 {[%clk 0:02:57]} 3... Be7 {[%clk 0:02:55.5]}
4. e3 {[%clk 0:02:56.9]} 4... b6 {[%clk 0:02:55.7]} 5. Be2 {[%clk 0:02:56.6]}
5... Bb7 {[%clk 0:02:56.2]} 6. O-O {[%clk 0:02:57.1]} 6... O-O {[%clk
0:02:56.4]} 7. c4 {[%clk 0:02:57.8]} 7... d5 {[%clk 0:02:55]} 8. d4 {[%clk
0:02:58.3]} 8... Nbd7 {[%clk 0:02:54.1]} 9. Nc3 {[%clk 0:02:58.7]} 9... c5
{[%clk 0:02:53.9]} 10. cxd5 {[%clk 0:02:58.4]} 10... Nxd5 {[%clk 0:02:53.8]} 11.
Rc1 {[%clk 0:02:54.1]} 11... Nxc3 {[%clk 0:02:49.2]} 12. Bxc3 {[%clk 0:02:53.8]}
12... cxd4 {[%clk 0:02:39.5]} 13. Nxd4 {[%clk 0:02:52.9]} 13... Ba3 {[%clk
0:02:35]} 14. Ra1 {[%clk 0:02:48.7]} 14... Rc8 {[%clk 0:02:30.3]} 15. Qd2 {[%clk
0:02:47.4]} 15... Nc5 {[%clk 0:02:22.5]} 16. Nb5 {[%clk 0:02:32.2]} 16... Ne4
{[%clk 0:02:12.5]} 17. Qxd8 {[%clk 0:02:30.2]} 17... Rfxd8 {[%clk 0:02:11.6]}
18. Bxg7 {[%clk 0:02:20.6]} 18... Kxg7 {[%clk 0:02:00.8]} 19. Nxa3 {[%clk
0:02:18.9]} 19... Nc3 {[%clk 0:01:57.4]} 20. Bf3 {[%clk 0:02:07.8]} 20... Bxf3
{[%clk 0:01:55.7]} 21. gxf3 {[%clk 0:02:08.7]} 21... b5 {[%clk 0:01:49.4]} 22.
Kg2 {[%clk 0:02:06.1]} 22... Rd2 {[%clk 0:01:12.1]} 23. Rfc1 {[%clk 0:01:48.2]}
23... b4 {[%clk 0:01:06.2]} 24. Nb5 {[%clk 0:01:39.5]} 24... a6 {[%clk
0:00:57.2]} 25. Nd4 {[%clk 0:01:34.7]} 25... e5 {[%clk 0:00:49.6]} 26. Nf5+
{[%clk 0:01:23.5]} 26... Kf6 {[%clk 0:00:49.5]} 27. e4 {[%clk 0:01:19.5]} 27...
Rg8+ {[%clk 0:00:42.6]} 28. Kf1 {[%clk 0:01:17.3]} 28... Rgd8 {[%clk 0:00:34.9]}
29. a3 {[%clk 0:01:11.1]} 29... a5 {[%clk 0:00:31]} 30. axb4 {[%clk 0:01:10.4]}
30... axb4 {[%clk 0:00:31.5]} 31. Ra6+ {[%clk 0:01:07.4]} 31... Kg5 {[%clk
0:00:31.7]} 32. Ne3 {[%clk 0:00:50.8]} 32... Rb2 {[%clk 0:00:20.4]} 33. Kg2
{[%clk 0:00:42]} 33... Rdd2 {[%clk 0:00:18.4]} 34. Rf1 {[%clk 0:00:40.1]} 34...
Rxb3 {[%clk 0:00:10.5]} 35. Nc4 {[%clk 0:00:40.3]} 35... Re2 {[%clk 0:00:08.4]}
36. Nxe5 {[%clk 0:00:40]} 36... Rbb2 {[%clk 0:00:07.6]} 37. Nxf7+ {[%clk
0:00:40.1]} 37... Kf4 {[%clk 0:00:03.1]} 38. Rf6# {[%clk 0:00:38]} 1-0

[Event "Late-Titled-Tuesday-Blitz-March-05-2024"]
[Site "Chess.com"]
[Date "2024.03.05"]
[Round "4"]
[White "rynos0411"]
[Black "kai_nov"]
[Result "1-0"]
[WhiteElo "2632"]
[BlackElo "2376"]
[TimeControl "180+1"]
[EndTime "14:38:54 PST"]
[Termination "rynos0411 won on time"]

1. e4 {[%clk 0:02:58.9]} 1... c5 {[%clk 0:02:59.7]} 2. Nf3 {[%clk 0:02:48.9]}
2... Nc6 {[%clk 0:02:59.2]} 3. Bb5 {[%clk 0:02:47.5]} 3... e5 {[%clk 0:02:58.5]}
4. O-O {[%clk 0:02:45.7]} 4... Bd6 {[%clk 0:02:58.4]} 5. d3 {[%clk 0:02:44.4]}
5... Nge7 {[%clk 0:02:58.4]} 6. Bxc6 {[%clk 0:02:43.7]} 6... dxc6 {[%clk
0:02:55.6]} 7. a4 {[%clk 0:02:44.6]} 7... O-O {[%clk 0:02:54.9]} 8. a5 {[%clk
0:02:43.3]} 8... h6 {[%clk 0:02:43.6]} 9. Nbd2 {[%clk 0:02:42.7]} 9... Be6
{[%clk 0:02:39.7]} 10. Re1 {[%clk 0:02:41.5]} 10... Bc7 {[%clk 0:02:34.6]} 11.
Qe2 {[%clk 0:02:24.3]} 11... Ng6 {[%clk 0:02:32.9]} 12. a6 {[%clk 0:02:21.1]}
12... b5 {[%clk 0:02:27.5]} 13. Nf1 {[%clk 0:02:17.7]} 13... Rb8 {[%clk
0:02:17.5]} 14. Be3 {[%clk 0:02:05.4]} 14... Bd6 {[%clk 0:02:10.4]} 15. c3
{[%clk 0:01:58.8]} 15... Qe7 {[%clk 0:01:46.4]} 16. Ng3 {[%clk 0:01:55.7]} 16...
Qd7 {[%clk 0:01:17.6]} 17. Red1 {[%clk 0:01:52.2]} 17... Rfd8 {[%clk 0:01:08]}
18. d4 {[%clk 0:01:44.3]} 18... exd4 {[%clk 0:01:06.1]} 19. cxd4 {[%clk
0:01:44.5]} 19... Bc4 {[%clk 0:00:48.4]} 20. Qc2 {[%clk 0:01:35.4]} 20... Qe6
{[%clk 0:00:32.6]} 21. Re1 {[%clk 0:01:15.7]} 21... Bf4 {[%clk 0:00:20.6]} 22.
Nf5 {[%clk 0:01:10]} 22... Bxe3 {[%clk 0:00:19]} 23. Rxe3 {[%clk 0:01:10.2]}
23... Nf4 {[%clk 0:00:17.5]} 24. g3 {[%clk 0:01:06]} 24... Nh3+ {[%clk
0:00:16.1]} 25. Kg2 {[%clk 0:01:01.4]} 25... Ng5 {[%clk 0:00:16.6]} 26. Nxg5
{[%clk 0:01:01.8]} 26... hxg5 {[%clk 0:00:16.6]} 27. dxc5 {[%clk 0:00:59.1]}
27... Qe5 {[%clk 0:00:12.8]} 28. Rc1 {[%clk 0:00:57.7]} 28... Be6 {[%clk
0:00:12]} 29. Ne7+ {[%clk 0:00:53.1]} 29... Kh7 {[%clk 0:00:08.9]} 30. Nxc6
{[%clk 0:00:53.2]} 30... Bh3+ {[%clk 0:00:06.8]} 31. Kg1 {[%clk 0:00:37.3]}
31... Qe6 {[%clk 0:00:03.4]} 32. Nxd8 {[%clk 0:00:36.3]} 32... Rxd8 {[%clk
0:00:04.3]} 33. e5+ {[%clk 0:00:35.9]} 33... g6 {[%clk 0:00:03.9]} 34. Qe4
{[%clk 0:00:32]} 1-0